[Event "Titled Tuesday Blitz May 23 Early 2023"]
[White "Ordekalog"]
[Black "Dehtiarov, Roman"]
[BlackFideId "14186640"]
[WhiteElo "2518"]
[BlackElo "2189"]
[Result "0-1"]
[Round "08"]
[TimeControl "180+2"]
[Date "2023.05.23"]
[WhiteClock "0:00:00"]
[BlackClock "0:00:11"]

1. e4 {[%clk 0:03:00]}  e5 {[%clk 0:02:59]} 2. Nf3 {[%clk 0:03:00]}  Nc6 {[%clk 0:02:59]} 3. Bb5 {[%clk 0:03:00]}  a6 {[%clk 0:02:59]} 4. Bxc6 {[%clk 0:03:00]}  dxc6 {[%clk 0:03:00]} 5. O-O {[%clk 0:03:00]}  Be7 {[%clk 0:03:01]} 6. Nxe5 {[%clk 0:02:59]}  Qd4 {[%clk 0:03:01]} 7. Nd3 {[%clk 0:02:59]}  Qxe4 {[%clk 0:03:01]} 8. Nc3 {[%clk 0:02:59]}  Qg6 {[%clk 0:03:01]} 9. Nf4 {[%clk 0:02:57]}  Qf5 {[%clk 0:03:01]} 10. d3 {[%clk 0:02:56]}  Nf6 {[%clk 0:02:57]} 11. Re1 {[%clk 0:02:56]}  g5 {[%clk 0:02:51]} 12. Nh5 {[%clk 0:02:53]}  Nxh5 {[%clk 0:02:51]} 13. Qxh5 {[%clk 0:02:53]}  Be6 {[%clk 0:02:51]} 14. Ne4 {[%clk 0:02:49]}  O-O-O {[%clk 0:02:50]} 15. Ng3 {[%clk 0:02:37]}  Qa5 {[%clk 0:02:25]} 16. Re2 {[%clk 0:02:17]}  Qb4 {[%clk 0:01:57]} 17. a3 {[%clk 0:01:58]}  Qd4 {[%clk 0:01:39]} 18. Re4 {[%clk 0:01:50]}  Qc5 {[%clk 0:01:33]} 19. Qe2 {[%clk 0:01:43]}  h5 {[%clk 0:01:18]} 20. Nxh5 {[%clk 0:01:10]}  Bd6 {[%clk 0:01:09]} 21. Be3 {[%clk 0:01:02]}  Qb5 {[%clk 0:01:03]} 22. c4 {[%clk 0:01:00]}  Qb3 {[%clk 0:00:59]} 23. Rd1 {[%clk 0:00:48]}  Bf5 {[%clk 0:00:30]} 24. Rd4 {[%clk 0:00:48]}  c5 {[%clk 0:00:16]} 25. Rd5 {[%clk 0:00:45]}  Bg6 {[%clk 0:00:14]} 26. Rxg5 {[%clk 0:00:40]}  Kb8 {[%clk 0:00:04]} 27. Ng3 {[%clk 0:00:37]}  Be7 {[%clk 0:00:03]} 28. Rd5 {[%clk 0:00:36]}  Rxd5 {[%clk 0:00:03]} 29. cxd5 {[%clk 0:00:36]}  Qxd5 {[%clk 0:00:04]} 30. Bf4 {[%clk 0:00:28]}  Bf6 {[%clk 0:00:04]} 31. Ne4 {[%clk 0:00:24]}  Bg7 {[%clk 0:00:04]} 32. Nc3 {[%clk 0:00:19]}  Qc6 {[%clk 0:00:03]} 33. Re1 {[%clk 0:00:16]}  Rd8 {[%clk 0:00:02]} 34. Be5 {[%clk 0:00:14]}  Bxe5 {[%clk 0:00:01]} 35. Qxe5 {[%clk 0:00:15]}  Ka7 {[%clk 0:00:01]} 36. h4 {[%clk 0:00:09]}  b6 {[%clk 0:00:02]} 37. h5 {[%clk 0:00:09]}  Bxd3 {[%clk 0:00:02]} 38. Re3 {[%clk 0:00:08]}  Rg8 {[%clk 0:00:02]} 39. Rg3 {[%clk 0:00:07]}  Rxg3 {[%clk 0:00:02]} 40. Qxg3 {[%clk 0:00:08]}  c4 {[%clk 0:00:03]} 41. Qe3 {[%clk 0:00:06]}  Qf6 {[%clk 0:00:03]} 42. h6 {[%clk 0:00:06]}  Qh4 {[%clk 0:00:03]} 43. Nd5 {[%clk 0:00:05]}  Qh5 {[%clk 0:00:03]} 44. Nf6 {[%clk 0:00:04]}  Qg6 {[%clk 0:00:02]} 45. Nd5 {[%clk 0:00:02]}  Qh5 {[%clk 0:00:02]} 46. Nf4 {[%clk 0:00:02]}  Qxh6 {[%clk 0:00:01]} 47. Qd4 {[%clk 0:00:02]}  Qd6 {[%clk 0:00:01]} 48. Nd5 {[%clk 0:00:02]}  a5 {[%clk 0:00:01]} 49. Qf4 {[%clk 0:00:01]}  Kb7 {[%clk 0:00:02]} 50. Qxd6 {[%clk 0:00:01]}  cxd6 {[%clk 0:00:03]} 51. Nc3 {[%clk 0:00:02]}  Kc6 {[%clk 0:00:04]} 52. f4 {[%clk 0:00:03]}  d5 {[%clk 0:00:04]} 53. Kf2 {[%clk 0:00:03]}  d4 {[%clk 0:00:05]} 54. Ne2 {[%clk 0:00:03]}  Bxe2 {[%clk 0:00:06]} 55. Kxe2 {[%clk 0:00:03]}  Kd5 {[%clk 0:00:06]} 56. g4 {[%clk 0:00:03]}  Ke4 {[%clk 0:00:07]} 57. f5 {[%clk 0:00:03]}  Kf4 {[%clk 0:00:07]} 58. b3 {[%clk 0:00:04]}  cxb3 {[%clk 0:00:07]} 59. Kd3 {[%clk 0:00:04]}  b2 {[%clk 0:00:08]} 60. Kc2 {[%clk 0:00:04]}  Kxg4 {[%clk 0:00:08]} 61. f6 {[%clk 0:00:05]}  Kf5 {[%clk 0:00:09]} 62. Kxb2 {[%clk 0:00:05]}  Kxf6 {[%clk 0:00:10]} 63. a4 {[%clk 0:00:05]}  Ke5 {[%clk 0:00:11]} 64. Kb3 {[%clk 0:00:00]}  Kd5 {[%clk 0:00:11]} 0-1


[Site "https://www.chess.com"]

[Event "Titled Tuesday Blitz May 23 Early 2023"]
[White "Martic, Ivan"]
[Black "Ilkhomi, Jaloliddin"]
[WhiteFideId "929301"]
[BlackFideId "14700948"]
[WhiteElo "2360"]
[BlackElo "2045"]
[Result "0-1"]
[Round "08"]
[TimeControl "180+2"]
[Date "2023.05.23"]
[WhiteClock "0:00:00"]
[BlackClock "0:00:25"]

1. e4 {[%clk 0:03:00]}  e6 {[%clk 0:02:57]} 2. d4 {[%clk 0:03:00]}  d5 {[%clk 0:02:57]} 3. e5 {[%clk 0:03:00]}  c5 {[%clk 0:02:57]} 4. c3 {[%clk 0:03:01]}  Qb6 {[%clk 0:02:55]} 5. Nf3 {[%clk 0:03:01]}  Bd7 {[%clk 0:02:54]} 6. Be2 {[%clk 0:02:59]}  Bb5 {[%clk 0:02:53]} 7. c4 {[%clk 0:03:00]}  Bxc4 {[%clk 0:02:49]} 8. Bxc4 {[%clk 0:03:00]}  dxc4 {[%clk 0:02:50]} 9. d5 {[%clk 0:03:01]}  exd5 {[%clk 0:02:44]} 10. Qxd5 {[%clk 0:03:02]}  Nc6 {[%clk 0:02:33]} 11. O-O {[%clk 0:02:59]}  Rd8 {[%clk 0:02:31]} 12. Qxc4 {[%clk 0:02:58]}  Qb4 {[%clk 0:02:29]} 13. Na3 {[%clk 0:02:55]}  Qxc4 {[%clk 0:02:24]} 14. Nxc4 {[%clk 0:02:56]}  b5 {[%clk 0:02:24]} 15. Ne3 {[%clk 0:02:53]}  Nd4 {[%clk 0:02:22]} 16. Nxd4 {[%clk 0:02:51]}  cxd4 {[%clk 0:02:23]} 17. Nf5 {[%clk 0:02:45]}  g6 {[%clk 0:02:23]} 18. Ng3 {[%clk 0:02:45]}  Bb4 {[%clk 0:02:21]} 19. Ne4 {[%clk 0:02:36]}  Rd5 {[%clk 0:02:12]} 20. Bf4 {[%clk 0:02:26]}  f5 {[%clk 0:01:55]} 21. exf6 {[%clk 0:02:22]}  Kf7 {[%clk 0:01:55]} 22. a3 {[%clk 0:02:17]}  Ba5 {[%clk 0:01:53]} 23. b4 {[%clk 0:02:02]}  Bd8 {[%clk 0:01:50]} 24. Rfe1 {[%clk 0:01:55]}  Nxf6 {[%clk 0:01:49]} 25. Ng5+ {[%clk 0:01:54]}  Kg7 {[%clk 0:01:44]} 26. Ne6+ {[%clk 0:01:52]}  Kf7 {[%clk 0:01:43]} 27. Rac1 {[%clk 0:01:46]}  Re8 {[%clk 0:01:23]} 28. Ng5+ {[%clk 0:01:14]}  Kf8 {[%clk 0:01:21]} 29. Rxe8+ {[%clk 0:01:13]}  Kxe8 {[%clk 0:01:21]} 30. Ne6 {[%clk 0:00:56]}  d3 {[%clk 0:01:20]} 31. Kf1 {[%clk 0:00:46]}  Ne4 {[%clk 0:01:16]} 32. f3 {[%clk 0:00:35]}  Nd6 {[%clk 0:01:11]} 33. Re1 {[%clk 0:00:31]}  Kd7 {[%clk 0:01:01]} 34. Nc5+ {[%clk 0:00:31]}  Kc6 {[%clk 0:01:01]} 35. Bxd6 {[%clk 0:00:24]}  Rxd6 {[%clk 0:00:57]} 36. Rd1 {[%clk 0:00:23]}  d2 {[%clk 0:00:53]} 37. Ke2 {[%clk 0:00:22]}  Bg5 {[%clk 0:00:49]} 38. Ne4 {[%clk 0:00:22]}  Re6 {[%clk 0:00:50]} 39. Kd3 {[%clk 0:00:20]}  Bf4 {[%clk 0:00:49]} 40. g3 {[%clk 0:00:19]}  Bh6 {[%clk 0:00:49]} 41. f4 {[%clk 0:00:17]}  a5 {[%clk 0:00:46]} 42. Rxd2 {[%clk 0:00:17]}  axb4 {[%clk 0:00:45]} 43. axb4 {[%clk 0:00:18]}  Bf8 {[%clk 0:00:46]} 44. Rc2+ {[%clk 0:00:18]}  Kb6 {[%clk 0:00:46]} 45. h4 {[%clk 0:00:15]}  Bxb4 {[%clk 0:00:46]} 46. Rb2 {[%clk 0:00:14]}  Be7 {[%clk 0:00:46]} 47. Nc3 {[%clk 0:00:14]}  Rd6+ {[%clk 0:00:46]} 48. Ke4 {[%clk 0:00:12]}  Re6+ {[%clk 0:00:46]} 49. Kd3 {[%clk 0:00:12]}  b4 {[%clk 0:00:44]} 50. Nd5+ {[%clk 0:00:11]}  Kb5 {[%clk 0:00:45]} 51. Nc3+ {[%clk 0:00:09]}  Kc6 {[%clk 0:00:42]} 52. Ne4 {[%clk 0:00:08]}  h5 {[%clk 0:00:42]} 53. Rc2+ {[%clk 0:00:06]}  Kb5 {[%clk 0:00:42]} 54. Rc8 {[%clk 0:00:06]}  Rb6 {[%clk 0:00:42]} 55. Re8 {[%clk 0:00:04]}  Rb7 {[%clk 0:00:40]} 56. Kc2 {[%clk 0:00:02]}  Kc4 {[%clk 0:00:39]} 57. Nd2+ {[%clk 0:00:02]}  Kd4 {[%clk 0:00:38]} 58. Kb3 {[%clk 0:00:02]}  Kd3 {[%clk 0:00:37]} 59. Nc4 {[%clk 0:00:02]}  Rc7 {[%clk 0:00:33]} 60. Ne5+ {[%clk 0:00:02]}  Kd4 {[%clk 0:00:29]} 61. Nxg6 {[%clk 0:00:03]}  Rc3+ {[%clk 0:00:29]} 62. Kb2 {[%clk 0:00:03]}  Bf6 {[%clk 0:00:29]} 63. Re6 {[%clk 0:00:02]}  Bg7 {[%clk 0:00:29]} 64. f5 {[%clk 0:00:02]}  Rxg3 {[%clk 0:00:25]} 65. f6 {[%clk 0:00:03]}  Rxg6 {[%clk 0:00:25]} 66. f7 {[%clk 0:00:00]}  Rxe6 {[%clk 0:00:25]} 0-1


[Site "https://www.chess.com"]

[Event "Titled Tuesday Blitz May 23 Early 2023"]
[White "Tokman, Ariel"]
[Black "koncheto"]
[WhiteFideId "117420"]
[WhiteElo "2263"]
[BlackElo "2615"]
[Result "1/2-1/2"]
[Round "08"]
[TimeControl "180+2"]
[Date "2023.05.23"]
[WhiteClock "0:00:09"]
[BlackClock "0:00:05"]

1. e4 {[%clk 0:02:58]}  e5 {[%clk 0:02:42]} 2. Nf3 {[%clk 0:02:58]}  Nf6 {[%clk 0:02:35]} 3. Nxe5 {[%clk 0:02:52]}  Nc6 {[%clk 0:02:35]} 4. Nf3 {[%clk 0:02:47]}  Nxe4 {[%clk 0:02:35]} 5. Nc3 {[%clk 0:02:47]}  Nf6 {[%clk 0:02:34]} 6. Bb5 {[%clk 0:02:43]}  Be7 {[%clk 0:02:26]} 7. O-O {[%clk 0:02:43]}  O-O {[%clk 0:02:27]} 8. d3 {[%clk 0:02:44]}  a6 {[%clk 0:02:27]} 9. Ba4 {[%clk 0:02:43]}  b5 {[%clk 0:02:22]} 10. Bb3 {[%clk 0:02:44]}  Bb7 {[%clk 0:02:22]} 11. Nd5 {[%clk 0:02:38]}  Re8 {[%clk 0:02:15]} 12. Nxe7+ {[%clk 0:02:35]}  Qxe7 {[%clk 0:02:13]} 13. Bg5 {[%clk 0:02:35]}  h6 {[%clk 0:02:13]} 14. Bh4 {[%clk 0:02:33]}  Qd6 {[%clk 0:02:11]} 15. Bg3 {[%clk 0:02:31]}  Qc5 {[%clk 0:02:06]} 16. d4 {[%clk 0:02:20]}  Qb6 {[%clk 0:02:06]} 17. c3 {[%clk 0:02:15]}  d5 {[%clk 0:02:06]} 18. Ne5 {[%clk 0:02:08]}  Nxe5 {[%clk 0:01:59]} 19. Bxe5 {[%clk 0:02:05]}  Rad8 {[%clk 0:01:56]} 20. Re1 {[%clk 0:02:01]}  Ne4 {[%clk 0:01:41]} 21. Re3 {[%clk 0:01:37]}  Re6 {[%clk 0:01:39]} 22. Rxe4 {[%clk 0:01:26]}  dxe4 {[%clk 0:01:34]} 23. Bxe6 {[%clk 0:01:23]}  Qxe6 {[%clk 0:01:32]} 24. Bxc7 {[%clk 0:01:12]}  Rd7 {[%clk 0:01:17]} 25. Bf4 {[%clk 0:01:06]}  Bd5 {[%clk 0:01:17]} 26. b3 {[%clk 0:01:02]}  Rd8 {[%clk 0:01:09]} 27. Be3 {[%clk 0:00:51]}  Rc8 {[%clk 0:01:09]} 28. Rc1 {[%clk 0:00:51]}  Rc6 {[%clk 0:01:08]} 29. Qh5 {[%clk 0:00:49]}  a5 {[%clk 0:00:46]} 30. Qh4 {[%clk 0:00:40]}  a4 {[%clk 0:00:42]} 31. Qd8+ {[%clk 0:00:40]}  Kh7 {[%clk 0:00:41]} 32. Qb8 {[%clk 0:00:32]}  Rb6 {[%clk 0:00:35]} 33. Qf8 {[%clk 0:00:26]}  axb3 {[%clk 0:00:26]} 34. axb3 {[%clk 0:00:26]}  Rc6 {[%clk 0:00:17]} 35. Qb4 {[%clk 0:00:26]}  Bxb3 {[%clk 0:00:16]} 36. Qxb5 {[%clk 0:00:26]}  Bc4 {[%clk 0:00:16]} 37. Qb8 {[%clk 0:00:23]}  Rc8 {[%clk 0:00:16]} 38. Qf4 {[%clk 0:00:23]}  Bd5 {[%clk 0:00:15]} 39. h3 {[%clk 0:00:22]}  Rc4 {[%clk 0:00:16]} 40. Qb8 {[%clk 0:00:21]}  Qc8 {[%clk 0:00:16]} 41. Qb5 {[%clk 0:00:21]}  Qc6 {[%clk 0:00:16]} 42. Qb2 {[%clk 0:00:18]}  Ra4 {[%clk 0:00:11]} 43. Ra1 {[%clk 0:00:15]}  Qb7 {[%clk 0:00:08]} 44. Qc1 {[%clk 0:00:13]}  Rc4 {[%clk 0:00:06]} 45. Qd2 {[%clk 0:00:12]}  Qb3 {[%clk 0:00:06]} 46. Rc1 {[%clk 0:00:11]}  Qa3 {[%clk 0:00:07]} 47. Bf4 {[%clk 0:00:10]}  Qb3 {[%clk 0:00:07]} 48. Be5 {[%clk 0:00:10]}  Qa3 {[%clk 0:00:06]} 49. Qe3 {[%clk 0:00:10]}  f6 {[%clk 0:00:06]} 50. Bf4 {[%clk 0:00:08]}  Qb3 {[%clk 0:00:06]} 51. Kh2 {[%clk 0:00:08]}  Qa3 {[%clk 0:00:06]} 52. Qg3 {[%clk 0:00:08]}  Qe7 {[%clk 0:00:06]} 53. h4 {[%clk 0:00:08]}  h5 {[%clk 0:00:06]} 54. Ra1 {[%clk 0:00:07]}  Be6 {[%clk 0:00:04]} 55. Bd2 {[%clk 0:00:07]}  Bg4 {[%clk 0:00:04]} 56. Ra5 {[%clk 0:00:07]}  Qc7 {[%clk 0:00:03]} 57. Qxc7 {[%clk 0:00:03]}  Rxc7 {[%clk 0:00:04]} 58. Kg3 {[%clk 0:00:03]}  Kg6 {[%clk 0:00:04]} 59. Ra3 {[%clk 0:00:02]}  Be6 {[%clk 0:00:05]} 60. Ra5 {[%clk 0:00:02]}  Bc4 {[%clk 0:00:05]} 61. Kf4 {[%clk 0:00:02]}  Bd3 {[%clk 0:00:05]} 62. Ke3 {[%clk 0:00:02]}  Bb1 {[%clk 0:00:04]} 63. f3 {[%clk 0:00:02]}  exf3 {[%clk 0:00:03]} 64. gxf3 {[%clk 0:00:03]}  Re7+ {[%clk 0:00:04]} 65. Kf4 {[%clk 0:00:03]}  Re2 {[%clk 0:00:04]} 66. Bc1 {[%clk 0:00:02]}  Re1 {[%clk 0:00:04]} 67. Ba3 {[%clk 0:00:02]}  Rf1 {[%clk 0:00:04]} 68. Bb4 {[%clk 0:00:02]}  Bc2 {[%clk 0:00:04]} 69. Ke3 {[%clk 0:00:02]}  Bd1 {[%clk 0:00:05]} 70. f4 {[%clk 0:00:03]}  Rf3+ {[%clk 0:00:05]} 71. Kd2 {[%clk 0:00:03]}  Bb3 {[%clk 0:00:05]} 72. f5+ {[%clk 0:00:03]}  Rxf5 {[%clk 0:00:05]} 73. Rxf5 {[%clk 0:00:03]}  Kxf5 {[%clk 0:00:06]} 74. Bf8 {[%clk 0:00:04]}  g5 {[%clk 0:00:06]} 75. hxg5 {[%clk 0:00:03]}  fxg5 {[%clk 0:00:07]} 76. Ke3 {[%clk 0:00:04]}  Bd5 {[%clk 0:00:07]} 77. Kf2 {[%clk 0:00:05]}  Ke4 {[%clk 0:00:07]} 78. Bd6 {[%clk 0:00:05]}  h4 {[%clk 0:00:06]} 79. Be7 {[%clk 0:00:05]}  Kf5 {[%clk 0:00:06]} 80. Kg1 {[%clk 0:00:05]}  Kg4 {[%clk 0:00:05]} 81. Kh2 {[%clk 0:00:05]}  h3 {[%clk 0:00:03]} 82. Bd6 {[%clk 0:00:05]}  Kf3 {[%clk 0:00:03]} 83. Bg3 {[%clk 0:00:06]}  g4 {[%clk 0:00:03]} 84. Bd6 {[%clk 0:00:07]}  Bc4 {[%clk 0:00:04]} 85. Bg3 {[%clk 0:00:08]}  Bd5 {[%clk 0:00:04]} 86. Be5 {[%clk 0:00:09]}  Bc4 {[%clk 0:00:05]} 87. Bg3 {[%clk 0:00:09]}  Bd5 {[%clk 0:00:05]} 1/2-1/2


[Site "https://www.chess.com"]

[Event "Titled Tuesday Blitz May 23 Early 2023"]
[White "Sliwicki, Damian"]
[Black "Korchmar, Vasiliy"]
[WhiteFideId "1127128"]
[BlackFideId "24131750"]
[WhiteElo "2030"]
[BlackElo "2370"]
[Result "0-1"]
[Round "08"]
[TimeControl "180+2"]
[Date "2023.05.23"]
[WhiteClock "0:00:00"]
[BlackClock "0:02:08"]

1. e4 {[%clk 0:03:00]}  c5 {[%clk 0:03:00]} 2. Nf3 {[%clk 0:03:00]}  d6 {[%clk 0:03:00]} 3. d4 {[%clk 0:03:00]}  cxd4 {[%clk 0:03:01]} 4. Qxd4 {[%clk 0:03:00]}  Nc6 {[%clk 0:03:00]} 5. Bb5 {[%clk 0:03:00]}  a6 {[%clk 0:03:01]} 6. Bxc6+ {[%clk 0:03:00]}  bxc6 {[%clk 0:03:01]} 7. c4 {[%clk 0:02:47]}  e5 {[%clk 0:03:00]} 8. Qd3 {[%clk 0:02:47]}  Qc7 {[%clk 0:02:56]} 9. O-O {[%clk 0:02:47]}  Nf6 {[%clk 0:02:56]} 10. Nc3 {[%clk 0:02:41]}  h6 {[%clk 0:02:54]} 11. b3 {[%clk 0:02:36]}  Be7 {[%clk 0:02:54]} 12. Ba3 {[%clk 0:02:08]}  O-O {[%clk 0:02:52]} 13. Nh4 {[%clk 0:02:04]}  Rd8 {[%clk 0:02:47]} 14. Nf5 {[%clk 0:02:02]}  Bxf5 {[%clk 0:02:43]} 15. exf5 {[%clk 0:02:03]}  d5 {[%clk 0:02:44]} 16. Bb2 {[%clk 0:01:49]}  e4 {[%clk 0:02:36]} 17. Qd4 {[%clk 0:01:33]}  c5 {[%clk 0:02:30]} 18. Qd2 {[%clk 0:01:11]}  d4 {[%clk 0:02:29]} 19. Ne2 {[%clk 0:01:07]}  Ng4 {[%clk 0:02:29]} 20. Ng3 {[%clk 0:01:04]}  e3 {[%clk 0:02:21]} 21. fxe3 {[%clk 0:00:57]}  Bg5 {[%clk 0:02:21]} 22. Qe2 {[%clk 0:00:41]}  Bxe3+ {[%clk 0:02:21]} 23. Kh1 {[%clk 0:00:41]}  Nf6 {[%clk 0:02:14]} 24. Qf3 {[%clk 0:00:39]}  a5 {[%clk 0:02:10]} 25. Rae1 {[%clk 0:00:39]}  a4 {[%clk 0:02:10]} 26. Rxe3 {[%clk 0:00:40]}  dxe3 {[%clk 0:02:08]} 27. Bxf6 {[%clk 0:00:40]}  gxf6 {[%clk 0:02:09]} 28. Nh5 {[%clk 0:00:36]}  Qe5 {[%clk 0:02:06]} 29. h3 {[%clk 0:00:16]}  axb3 {[%clk 0:02:05]} 30. axb3 {[%clk 0:00:14]}  e2 {[%clk 0:02:06]} 31. Re1 {[%clk 0:00:14]}  Ra1 {[%clk 0:02:07]} 32. Qg4+ {[%clk 0:00:09]}  Kf8 {[%clk 0:02:07]} 33. Rxa1 {[%clk 0:00:05]}  Qxa1+ {[%clk 0:02:08]} 34. Kh2 {[%clk 0:00:05]}  Qe5+ {[%clk 0:02:07]} 35. g3 {[%clk 0:00:01]}  e1=Q {[%clk 0:02:08]} 36. Qg7+ {[%clk 0:00:00]}  Ke7 {[%clk 0:02:08]} 0-1


[Site "https://www.chess.com"]

[Event "Titled Tuesday Blitz May 23 Early 2023"]
[White "HamedWafa4"]
[Black "Flynn, Jacob"]
[BlackFideId "2509393"]
[WhiteElo "2610"]
[BlackElo "2053"]
[Result "1-0"]
[Round "08"]
[TimeControl "180+2"]
[Date "2023.05.23"]
[WhiteClock "0:01:18"]
[BlackClock "0:00:31"]

1. e4 {[%clk 0:03:00]}  e5 {[%clk 0:03:00]} 2. Nf3 {[%clk 0:02:59]}  Nc6 {[%clk 0:03:00]} 3. Bb5 {[%clk 0:02:57]}  a6 {[%clk 0:03:00]} 4. Ba4 {[%clk 0:02:57]}  Nf6 {[%clk 0:03:01]} 5. O-O {[%clk 0:02:56]}  Be7 {[%clk 0:03:02]} 6. d3 {[%clk 0:02:56]}  b5 {[%clk 0:03:02]} 7. Bb3 {[%clk 0:02:55]}  d6 {[%clk 0:03:03]} 8. a3 {[%clk 0:02:53]}  O-O {[%clk 0:03:02]} 9. Nc3 {[%clk 0:02:53]}  Bg4 {[%clk 0:02:57]} 10. Be3 {[%clk 0:02:49]}  Nd4 {[%clk 0:02:58]} 11. Bxd4 {[%clk 0:02:49]}  exd4 {[%clk 0:02:58]} 12. Nd5 {[%clk 0:02:49]}  Nd7 {[%clk 0:02:52]} 13. h3 {[%clk 0:02:44]}  Bxf3 {[%clk 0:02:50]} 14. Qxf3 {[%clk 0:02:45]}  c6 {[%clk 0:02:45]} 15. Nxe7+ {[%clk 0:02:42]}  Qxe7 {[%clk 0:02:46]} 16. Qg3 {[%clk 0:02:40]}  Nc5 {[%clk 0:02:46]} 17. Ba2 {[%clk 0:02:39]}  Na4 {[%clk 0:02:46]} 18. Rab1 {[%clk 0:02:37]}  Kh8 {[%clk 0:02:42]} 19. f4 {[%clk 0:02:36]}  f5 {[%clk 0:02:40]} 20. exf5 {[%clk 0:02:24]}  Rxf5 {[%clk 0:02:36]} 21. Rbe1 {[%clk 0:02:16]}  Qf8 {[%clk 0:02:35]} 22. Be6 {[%clk 0:02:15]}  Rf6 {[%clk 0:02:34]} 23. b3 {[%clk 0:02:14]}  Nc5 {[%clk 0:02:31]} 24. f5 {[%clk 0:02:12]}  Re8 {[%clk 0:02:26]} 25. Qg4 {[%clk 0:01:58]}  Nxe6 {[%clk 0:02:12]} 26. fxe6 {[%clk 0:01:56]}  Qe7 {[%clk 0:01:58]} 27. Rxf6 {[%clk 0:01:45]}  Qxf6 {[%clk 0:01:58]} 28. Rf1 {[%clk 0:01:44]}  Qg6 {[%clk 0:01:50]} 29. e7 {[%clk 0:01:35]}  Kg8 {[%clk 0:01:40]} 30. Qf4 {[%clk 0:01:31]}  Qf6 {[%clk 0:01:32]} 31. Qxf6 {[%clk 0:01:31]}  gxf6 {[%clk 0:01:32]} 32. Rxf6 {[%clk 0:01:32]}  Rxe7 {[%clk 0:01:29]} 33. Rxd6 {[%clk 0:01:32]}  Re1+ {[%clk 0:01:08]} 34. Kf2 {[%clk 0:01:32]}  Ra1 {[%clk 0:01:08]} 35. Rxc6 {[%clk 0:01:31]}  Rxa3 {[%clk 0:01:08]} 36. g4 {[%clk 0:01:29]}  Ra2 {[%clk 0:01:01]} 37. Kf3 {[%clk 0:01:28]}  a5 {[%clk 0:00:55]} 38. Ke4 {[%clk 0:01:27]}  a4 {[%clk 0:00:56]} 39. bxa4 {[%clk 0:01:27]}  Rxa4 {[%clk 0:00:54]} 40. Rc5 {[%clk 0:01:25]}  Rb4 {[%clk 0:00:51]} 41. Rd5 {[%clk 0:01:26]}  Rb2 {[%clk 0:00:51]} 42. Kxd4 {[%clk 0:01:25]}  Rxc2 {[%clk 0:00:50]} 43. Rxb5 {[%clk 0:01:25]}  Rh2 {[%clk 0:00:50]} 44. Rh5 {[%clk 0:01:25]}  Kg7 {[%clk 0:00:46]} 45. Kd5 {[%clk 0:01:25]}  Ra2 {[%clk 0:00:44]} 46. d4 {[%clk 0:01:24]}  Kg6 {[%clk 0:00:42]} 47. Ke5 {[%clk 0:01:22]}  Re2+ {[%clk 0:00:41]} 48. Kd6 {[%clk 0:01:21]}  Re8 {[%clk 0:00:40]} 49. d5 {[%clk 0:01:21]}  Rd8+ {[%clk 0:00:40]} 50. Ke6 {[%clk 0:01:22]}  Re8+ {[%clk 0:00:40]} 51. Kd7 {[%clk 0:01:22]}  Ra8 {[%clk 0:00:40]} 52. d6 {[%clk 0:01:23]}  h6 {[%clk 0:00:37]} 53. Ke7 {[%clk 0:01:22]}  Rh8 {[%clk 0:00:32]} 54. d7 {[%clk 0:01:21]}  Rh7+ {[%clk 0:00:32]} 55. Ke6 {[%clk 0:01:20]}  Rh8 {[%clk 0:00:31]} 56. Rd5 {[%clk 0:01:18]} 1-0


[Site "https://www.chess.com"]

[Event "Titled Tuesday Blitz May 23 Early 2023"]
[White "Fiorito, Joaquin"]
[Black "Andreev, Konstantin"]
[WhiteFideId "180173"]
[BlackFideId "24239305"]
[WhiteElo "2157"]
[BlackElo "2106"]
[Result "1-0"]
[Round "08"]
[TimeControl "180+2"]
[Date "2023.05.23"]
[WhiteClock "0:00:15"]
[BlackClock "0:00:00"]

1. d4 {[%clk 0:03:00]}  Nf6 {[%clk 0:02:59]} 2. c4 {[%clk 0:03:01]}  e6 {[%clk 0:03:00]} 3. Nc3 {[%clk 0:03:02]}  Bb4 {[%clk 0:03:00]} 4. e3 {[%clk 0:03:02]}  O-O {[%clk 0:03:01]} 5. Bd2 {[%clk 0:03:03]}  Re8 {[%clk 0:03:01]} 6. Nf3 {[%clk 0:03:01]}  b6 {[%clk 0:03:02]} 7. Bd3 {[%clk 0:03:01]}  Bb7 {[%clk 0:03:02]} 8. O-O {[%clk 0:02:52]}  d6 {[%clk 0:03:02]} 9. Qe2 {[%clk 0:02:48]}  e5 {[%clk 0:03:03]} 10. dxe5 {[%clk 0:02:43]}  dxe5 {[%clk 0:03:04]} 11. Rfd1 {[%clk 0:02:32]}  Qe7 {[%clk 0:02:59]} 12. Bc2 {[%clk 0:02:28]}  Nbd7 {[%clk 0:02:56]} 13. a3 {[%clk 0:02:27]}  Bd6 {[%clk 0:02:38]} 14. Nb5 {[%clk 0:02:15]}  a6 {[%clk 0:02:30]} 15. Nxd6 {[%clk 0:02:15]}  Qxd6 {[%clk 0:02:31]} 16. Bc3 {[%clk 0:02:12]}  Qe6 {[%clk 0:02:31]} 17. Ng5 {[%clk 0:01:46]}  Qe7 {[%clk 0:02:27]} 18. Nxh7 {[%clk 0:01:37]}  Ne4 {[%clk 0:02:15]} 19. Bxe4 {[%clk 0:01:30]}  Bxe4 {[%clk 0:02:16]} 20. Qg4 {[%clk 0:01:17]}  Nc5 {[%clk 0:01:18]} 21. Ng5 {[%clk 0:01:12]}  Bc2 {[%clk 0:01:16]} 22. Re1 {[%clk 0:00:23]}  f6 {[%clk 0:01:12]} 23. Nf3 {[%clk 0:00:22]}  Rad8 {[%clk 0:01:03]} 24. b4 {[%clk 0:00:20]}  Na4 {[%clk 0:00:50]} 25. Rac1 {[%clk 0:00:17]}  Bb3 {[%clk 0:00:43]} 26. Ba1 {[%clk 0:00:17]}  Rd3 {[%clk 0:00:41]} 27. Nh4 {[%clk 0:00:17]}  Qd7 {[%clk 0:00:33]} 28. Nf5 {[%clk 0:00:17]}  Rd8 {[%clk 0:00:32]} 29. Qg6 {[%clk 0:00:16]}  Kf8 {[%clk 0:00:28]} 30. h4 {[%clk 0:00:16]}  Qf7 {[%clk 0:00:28]} 31. Qh7 {[%clk 0:00:17]}  Qg8 {[%clk 0:00:28]} 32. Qh5 {[%clk 0:00:17]}  g6 {[%clk 0:00:22]} 33. Qh6+ {[%clk 0:00:18]}  Kf7 {[%clk 0:00:23]} 34. Ng3 {[%clk 0:00:16]}  Qg7 {[%clk 0:00:19]} 35. Qxg7+ {[%clk 0:00:16]}  Kxg7 {[%clk 0:00:20]} 36. Ne4 {[%clk 0:00:17]}  Kf7 {[%clk 0:00:19]} 37. f4 {[%clk 0:00:15]}  exf4 {[%clk 0:00:05]} 38. exf4 {[%clk 0:00:15]}  f5 {[%clk 0:00:05]} 39. Ng5+ {[%clk 0:00:15]}  Kf8 {[%clk 0:00:05]} 40. Bf6 {[%clk 0:00:15]}  R8d6 {[%clk 0:00:05]} 41. Be7+ {[%clk 0:00:15]}  Kg7 {[%clk 0:00:05]} 42. Bxd6 {[%clk 0:00:16]}  Rxd6 {[%clk 0:00:05]} 43. Re7+ {[%clk 0:00:17]}  Kf8 {[%clk 0:00:05]} 44. Rce1 {[%clk 0:00:16]}  Bxc4 {[%clk 0:00:05]} 45. Re8+ {[%clk 0:00:16]}  Kg7 {[%clk 0:00:05]} 46. R1e7+ {[%clk 0:00:17]}  Kf6 {[%clk 0:00:05]} 47. Rxc7 {[%clk 0:00:16]}  Nb2 {[%clk 0:00:00]} 48. Rf8+ {[%clk 0:00:15]} 1-0


[Site "https://www.chess.com"]